bitfinex-derivatives/quotes_BTCF0:USTF0_20240902
["timestamp","ask_amount","ask_price","bid_price","bid_amount"]
[1725270571628,0.0952,58129.0,58128.0,0.3608]
[1725270572528,0.0004,58129.0,58128.0,0.3608]
[1725270573023,0.0004,58129.0,58128.0,0.3658]
[1725270574127,0.0004,58129.0,58128.0,0.3608]
[1725270574315,0.0004,58129.0,58128.0,0.3628]
[1725270574627,0.0004,58129.0,58128.0,0.423014]
[1725270577021,0.0004,58129.0,58128.0,0.3628]
[1725270577333,0.0004,58129.0,58128.0,1.539094]
[1725270579323,0.0004,58129.0,58128.0,1.719094]
[1725270579529,0.0004,58129.0,58128.0,1.768994]
[1725270580325,0.0004,58129.0,58128.0,1.77266385]
[1725270582126,0.0004,58129.0,58128.0,1.25658385]
[1725270582331,0.0004,58129.0,58128.0,1.77266385]
[1725270582935,0.00025788,58134.0,58128.0,1.71244985]
[1725270583243,0.060172,58169.0,58136.0,0.060206]
[1725270583429,0.3608,58173.0,58168.0,0.3612]
[1725270583632,0.3608,58173.0,58172.0,0.0004]
[1725270583824,0.3608,58173.0,58168.0,0.3612]
[1725270584931,0.00025788,58176.0,58168.0,0.3612]
[1725270585135,0.00025788,58176.0,58175.0,0.0004]
[1725270586360,0.00025788,58176.0,58175.0,0.0014]
[1725270587061,0.00025788,58176.0,58175.0,1.28708]
[1725270587351,0.00025788,58176.0,58175.0,1.33208]
[1725270587551,0.00025788,58176.0,58175.0,1.33308]
[1725270588545,8.8e-07,58176.0,58175.0,1.33308]
[1725270589150,0.17,58204.0,58185.0,0.060155]
[1725270589355,0.230136,58204.0,58203.0,0.3608]
[1725270590044,0.060141,58200.0,58198.0,0.36105788]
[1725270590644,0.059141,58200.0,58198.0,0.36105788]
[1725270590856,0.059141,58200.0,58199.0,0.0004]
[1725270591753,0.17,58203.0,58199.0,0.0004]
[1725270591959,0.17,58203.0,58202.0,0.0004]
[1725270592359,1.28544,58203.0,58202.0,0.0004]
[1725270592952,1.28644,58203.0,58202.0,0.0004]
[1725270593255,1.33214,58203.0,58202.0,0.0004]
[1725270593457,1.33114,58203.0,58202.0,0.0004]
[1725270593654,1.33214,58203.0,58202.0,0.0014]
[1725270594163,0.73214,58203.0,58202.0,0.0014]
[1725270594362,1.33214,58203.0,58202.0,0.0014]
[1725270594556,0.73214,58203.0,58202.0,0.0014]
[1725270594753,0.68644,58203.0,58202.0,0.0014]
[1725270594952,0.001,58203.0,58202.0,0.0014]
[1725270595558,0.07151753,58203.0,58202.0,0.0014]
[1725270596657,0.001,58203.0,58202.0,0.0014]
[1725270598150,0.171,58203.0,58202.0,0.0014]
[1725270598351,0.24151753,58203.0,58198.0,0.00025788]
[1725270598550,0.16391753,58202.0,58198.0,0.00025788]
[1725270598763,0.07051753,58201.0,58198.0,0.00025788]
[1725270599063,0.07051753,58200.0,58198.0,0.00025788]
[1725270599256,0.07051753,58199.0,58198.0,0.00025788]
[1725270599966,0.07051753,58199.0,58198.0,0.00125788]
[1725270600455,0.07151753,58199.0,58198.0,0.00125788]
[1725270602360,0.07051753,58199.0,58195.0,0.2295166]
[1725270602667,0.003,58199.0,58198.0,0.001]
[1725270602863,0.773,58199.0,58198.0,0.001]
[1725270603057,0.17,58199.0,58195.0,0.2295166]
[1725270603258,0.17,58199.0,58198.0,0.001]
[1725270603259,0.173,58199.0,58198.0,0.001]
[1725270603460,0.003,58199.0,58198.0,0.001]
[1725270603657,0.003,58199.0,58198.0,1.28648]
[1725270605565,0.003,58199.0,58198.0,1.28548]
[1725270605751,0.003,58199.0,58198.0,1.345622]
[1725270606063,0.0004,58203.0,58202.0,0.060138]
[1725270606259,0.0004,58203.0,58202.0,0.591338]
[1725270606458,0.0004,58203.0,58202.0,0.936778]
[1725270606662,0.0004,58203.0,58202.0,0.421338]
[1725270607367,0.0004,58203.0,58202.0,1.706778]
[1725270608668,0.0004,58203.0,58202.0,0.421338]
[1725270608965,0.0004,58203.0,58202.0,0.426338]
[1725270609159,0.0004,58203.0,58202.0,0.3662]
[1725270609355,0.0004,58203.0,58202.0,0.3612]
[1725270613162,0.0004,58203.0,58202.0,0.5312]
[1725270613362,0.00025788,58209.0,58208.0,0.060132]
[1725270613562,0.00025788,58209.0,58208.0,0.590932]
[1725270613979,0.00025788,58209.0,58208.0,0.561332]
[1725270614170,0.00025788,58209.0,58208.0,0.421332]
[1725270614372,0.00025788,58209.0,58208.0,0.0004]
[1725270615578,0.00025788,58209.0,58175.0,0.3608]
[1725270615579,0.5154,58208.0,58175.0,0.3608]
[1725270615768,0.96105788,58209.0,58193.0,0.5008]
[1725270615769,0.3608,58203.0,58193.0,0.5008]
[1725270616074,0.0004,58209.0,58207.0,0.060132]
[1725270616287,0.060106,58233.0,58200.0,0.3608]
[1725270616288,0.0451,58239.0,58208.0,0.5308]
[1725270616468,0.3608,58252.0,58237.0,0.3608]
[1725270616671,0.17,58246.0,58237.0,0.3608]
[1725270616877,0.3608,58245.0,58229.0,0.3608]
[1725270617075,0.00025766,58250.0,58239.0,0.00017231]
[1725270617274,0.00025766,58250.0,58230.0,0.3608]
[1725270617275,0.5308,58252.0,58235.0,0.3608]
[1725270617469,0.00025766,58250.0,58239.0,0.00017231]
[1725270617777,0.53192464,58245.0,58239.0,0.00017231]
[1725270618178,0.36192464,58245.0,58239.0,0.00017231]
[1725270618482,0.36192464,58245.0,58227.0,0.3608]
[1725270618483,0.5308,58240.0,58227.0,0.3608]
[1725270618670,0.3608,58233.0,58227.0,0.3608]
[1725270618986,0.17,58229.0,58227.0,0.3608]
[1725270619784,0.00112464,58228.0,58227.0,0.3608]
[1725270620170,0.17,58229.0,58227.0,0.3608]
[1725270620788,0.3608,58233.0,58227.0,0.3608]
[1725270620975,0.00025766,58234.0,58232.0,0.3608]
[1725270621985,0.00025766,58234.0,58233.0,0.0004]
[1725270622377,0.00156496,58234.0,58233.0,0.0004]
[1725270622575,0.00356496,58234.0,58233.0,0.0004]
[1725270623077,0.00395918,58234.0,58233.0,0.0004]
[1725270623283,0.00795918,58234.0,58233.0,0.0004]
[1725270623780,0.00195918,58234.0,58233.0,1.11556]
[1725270623988,0.00195918,58234.0,58233.0,1.11656]
[1725270623989,0.00895918,58234.0,58233.0,1.11656]
[1725270624374,0.00878687,58234.0,58233.0,1.11656]
[1725270624674,0.060082,58256.0,58240.0,0.060098]
[1725270624986,0.060082,58256.0,58255.0,0.0004]
[1725270625483,0.3608,58258.0,58255.0,0.0004]
[1725270625687,0.3608,58258.0,58257.0,0.0004]
[1725270625990,0.420881,58258.0,58257.0,0.0004]
[1725270626384,0.3608,58258.0,58257.0,0.0004]
[1725270626571,1.47576,58258.0,58257.0,0.0004]
[1725270626778,0.87576,58258.0,58257.0,0.0004]
[1725270626980,0.88376,58258.0,58257.0,0.0014]
[1725270627182,0.3688,58258.0,58257.0,0.0014]
[1725270627573,0.88376,58258.0,58257.0,0.0014]
[1725270628178,0.3688,58258.0,58257.0,0.0014]
[1725270628592,0.87576,58258.0,58257.0,0.0014]
[1725270628782,0.3608,58258.0,58257.0,0.0014]
[1725270628974,0.87576,58258.0,58257.0,0.0014]
[1725270629180,0.3608,58258.0,58257.0,0.0014]
[1725270629585,0.046,58259.0,58257.0,0.42228]
[1725270629889,0.00025766,58262.0,58258.0,0.0004]
[1725270630184,0.00025766,58262.0,58261.0,0.0004]
[1725270630789,0.3608,58295.0,58261.0,0.4453]
[1725270630992,0.3608,58307.0,58294.0,0.0004]
[1725270631301,0.3608,58320.0,58306.0,0.3608]
[1725270631480,0.3608,58320.0,58319.0,0.0004]
[1725270631680,0.7216,58320.0,58319.0,0.0004]
[1725270632105,1.236,58320.0,58319.0,0.0004]
[1725270632391,2.01442069,58320.0,58294.0,0.18]
[1725270632583,0.18607359,58301.0,58294.0,0.001]
[1725270632779,0.18607359,58298.0,58294.0,0.001]
[1725270632979,0.18607359,58298.0,58288.0,0.35]
[1725270633192,0.05165824,58297.0,58288.0,0.35]
[1725270633393,0.05165824,58296.0,58284.0,0.3608]
[1725270633594,0.216,58298.0,58284.0,0.3608]
[1725270633889,0.2476043,58300.0,58284.0,0.3608]
[1725270634096,0.18607359,58300.0,58284.0,0.3608]
[1725270634294,0.3608,58301.0,58284.0,0.3608]
[1725270634487,0.17,58297.0,58284.0,0.3608]
[1725270634687,0.3608,58293.0,58277.0,0.3608]
[1725270634993,0.169,58292.0,58277.0,0.3608]
[1725270635195,0.3608,58294.0,58283.0,0.3608]
[1725270635492,0.3608,58301.0,58283.0,0.3608]
[1725270635493,0.18573378,58296.0,58289.0,0.00025738]
[1725270635690,0.3608,58295.0,58289.0,0.00025738]
[1725270635893,0.00025738,58294.0,58289.0,0.00025738]
[1725270638195,0.18563763,58306.0,58293.0,0.3608]
[1725270638394,0.05265349,58305.0,58302.0,0.3608]
[1725270638598,0.05265349,58304.0,58302.0,0.3608]
[1725270638799,0.05265349,58303.0,58293.0,0.3608]
[1725270638991,0.05265349,58303.0,58289.0,0.3608]
[1725270638992,0.22265349,58302.0,58289.0,0.005]
[1725270639182,0.05265349,58301.0,58289.0,0.005]
[1725270639388,0.05265349,58301.0,58296.0,0.17]
[1725270639583,0.54643763,58308.0,58296.0,0.17]
[1725270639893,0.54643763,58308.0,58295.0,0.3608]
[1725270639894,0.001,58305.0,58302.0,0.001]
[1725270640284,0.3608,58308.0,58298.0,0.060038]
[1725270640486,0.0004,58299.0,58297.0,0.06004]
[1725270640700,0.00019982,58299.0,58297.0,0.06004]
[1725270641091,8.2e-07,58299.0,58298.0,0.5146]
[1725270641295,3.8e-07,58304.0,58303.0,0.060034]
[1725270641502,3.8e-07,58304.0,58303.0,0.591234]
[1725270641691,3.8e-07,58304.0,58303.0,1.705794]
[1725270641899,0.3608,58331.0,58319.0,0.060017]
[1725270642089,0.17,58323.0,58319.0,0.0004]
[1725270642697,0.0489,58330.0,58319.0,0.1704]
[1725270642894,0.0489,58330.0,58319.0,0.0004]
[1725270643097,0.17,58322.0,58319.0,0.0004]
[1725270643288,0.3608,58326.0,58319.0,0.0004]
[1725270643489,0.0024,58320.0,58319.0,0.0014]
[1725270643797,0.0024,58320.0,58314.0,0.00025738]
[1725270643798,1.4776,58320.0,58314.0,0.00025738]
[1725270644004,0.3608,58315.0,58314.0,0.00025738]
[1725270644187,0.36408,58320.0,58314.0,0.00025738]
[1725270644393,0.21,58316.0,58314.0,0.00025738]
[1725270644692,0.3608,58315.0,58314.0,0.00025738]
[1725270645400,1.47524,58315.0,58300.0,0.060037]
[1725270645599,0.3598,58308.0,58296.0,0.3608]
[1725270645807,0.3608,58300.0,58283.0,0.060054]
[1725270645997,0.3608,58295.0,58285.0,0.060052]
[1725270646298,0.3608,58295.0,58282.0,0.3608]
[1725270646299,0.048,58294.0,58283.0,0.060054]
[1725270646695,0.041,58294.0,58283.0,0.060054]
[1725270647003,0.00025738,58294.0,58283.0,0.06031138]
[1725270647191,0.00025738,58294.0,58284.0,0.060052]
[1725270647497,0.00025738,58294.0,58283.0,0.00025738]
[1725270648401,0.0004,58284.0,58283.0,0.00025738]
[1725270648602,0.00025738,58294.0,58285.0,0.0046]
[1725270648897,0.00025738,58294.0,58293.0,0.0004]
[1725270649307,0.51489738,58294.0,58293.0,0.0004]
[1725270649888,0.56309738,58294.0,58293.0,0.0004]
[1725270650299,0.56309738,58294.0,58285.0,0.001]
[1725270650300,1.57049738,58294.0,58285.0,0.001]
[1725270650497,0.5698,58286.0,58283.0,0.00025738]
[1725270651097,0.51472,58285.0,58283.0,0.00025738]
[1725270651604,0.51472,58284.0,58283.0,0.00025738]
[1725270652103,1.11472,58284.0,58283.0,0.00025738]
[1725270652600,0.51472,58284.0,58283.0,0.00025738]
[1725270652906,0.060057,58281.0,58262.0,0.3608]
[1725270653099,0.5708,58275.0,58262.0,0.3608]
[1725270653296,0.0455,58274.0,58262.0,0.3608]
[1725270653500,0.0941,58274.0,58262.0,0.3608]
[1725270654492,0.0941,58274.0,58262.0,0.36105738]
[1725270654493,0.09435738,58274.0,58262.0,0.36105738]
[1725270654695,0.09435738,58274.0,58271.0,0.05129326]
[1725270654895,0.21,58272.0,58264.0,0.06741318]
[1725270655095,0.5698,58265.0,58262.0,0.05057407]
[1725270655299,0.5698,58265.0,58261.0,0.05057407]
[1725270655495,0.5698,58265.0,58262.0,0.05057407]
[1725270655699,0.5698,58265.0,58259.0,0.04457407]
[1725270656002,0.5698,58265.0,58240.0,0.060098]
[1725270656003,0.5712,58260.0,58245.0,0.08548876]
[1725270656207,0.060084,58255.0,58246.0,0.08548876]
[1725270656410,0.3608,58250.0,58245.0,0.08548876]
[1725270656705,0.21,58253.0,58239.0,0.08548876]
[1725270656706,0.0004,58246.0,58239.0,0.08548876]
[1725270656900,0.0004,58240.0,58239.0,0.08548876]
[1725270657309,0.0004,58240.0,58238.0,0.44628876]
[1725270657603,0.0004,58239.0,58238.0,0.44628876]
[1725270657798,0.0004,58239.0,58238.0,0.3608]
[1725270658403,0.21025738,58253.0,58238.0,0.57714378]
[1725270658598,0.21,58247.0,58243.0,0.3608]
[1725270659000,0.21025738,58253.0,58243.0,0.3608]
[1725270659201,0.21025738,58253.0,58252.0,0.0004]
[1725270659707,0.72525738,58253.0,58252.0,0.0004]
[1725270660014,0.00025738,58253.0,58252.0,0.0004]
[1725270661303,0.21,58265.0,58252.0,0.0004]
[1725270661499,0.21,58265.0,58264.0,0.0004]
[1725270661699,0.21,58265.0,58245.0,0.08548876]
[1725270661700,0.060078,58260.0,58245.0,0.08548876]
[1725270661904,0.21,58253.0,58248.0,0.3608]
[1725270662312,0.21,58253.0,58245.0,0.00025738]
[1725270662513,0.5708,58247.0,58245.0,0.00025738]
[1725270663307,0.0601,58239.0,58229.0,0.08548876]
[1725270663507,1.1708,58247.0,58233.0,0.060105]
[1725270663508,0.3608,58238.0,58233.0,0.060105]
[1725270663901,0.36176001,58247.0,58237.0,0.3608]
[1725270664102,0.3608,58247.0,58237.0,0.3608]
[1725270664306,0.3608,58247.0,58238.0,0.0601]
[1725270664903,0.00025738,58248.0,58242.0,0.3608]
[1725270665109,0.00025738,58248.0,58247.0,0.3608]
[1725270665303,0.3608,58267.0,58247.0,0.3608]
[1725270665304,0.3608,58267.0,58256.0,0.060081]
[1725270665496,0.21,58260.0,58257.0,0.3608]
[1725270665700,0.06009,58249.0,58239.0,0.08415478]
[1725270665914,0.0004,58240.0,58238.0,0.3608]
[1725270666107,0.0004,58239.0,58238.0,0.3608]
[1725270666308,0.0004,58240.0,58238.0,1.53602]
[1725270666511,0.0004,58240.0,58239.0,0.59967478]
[1725270666708,0.17,58264.0,58249.0,0.060089]
[1725270666904,0.230075,58264.0,58263.0,0.0004]
[1725270667503,0.3608,58266.0,58263.0,0.0004]
[1725270667703,0.00025738,58269.0,58265.0,0.0004]
[1725270668013,1e-08,58269.0,58268.0,0.0004]
[1725270668398,1e-08,58269.0,58268.0,1.11524]
[1725270669100,1e-08,58269.0,58268.0,1.2460169]
[1725270669620,1e-08,58269.0,58268.0,1.11524]
[1725270670405,1e-08,58269.0,58268.0,0.0004]
[1725270670611,1e-08,58269.0,58268.0,1.11524]
[1725270670922,1e-08,58269.0,58268.0,1.32524]
[1725270671111,1e-08,58269.0,58268.0,1.50524]
[1725270671510,1e-08,58269.0,58268.0,1.29524]
[1725270671709,1e-08,58269.0,58268.0,0.69524]
[1725270671904,1e-08,58269.0,58268.0,1.29524]
[1725270672513,1e-08,58269.0,58268.0,1.50524]
[1725270673112,1e-08,58269.0,58268.0,1.29524]
[1725270673315,1e-08,58269.0,58268.0,0.69524]
[1725270673515,1e-08,58269.0,58268.0,0.51524]
[1725270673822,1e-08,58269.0,58268.0,0.0004]
[1725270676910,1e-08,58269.0,58268.0,1.11524]
[1725270677116,1e-08,58269.0,58268.0,1.17531]
[1725270677721,1e-08,58269.0,58268.0,0.06047]
[1725270678424,1e-08,58269.0,58268.0,1.17531]
[1725270678925,0.3608,58291.0,58287.0,0.060049]
[1725270679122,0.3608,58291.0,58290.0,0.0004]
[1725270679423,0.5708,58291.0,58290.0,0.0004]
[1725270679730,0.21,58291.0,58290.0,0.0004]
[1725270679912,0.21,58291.0,58278.0,0.3608]
[1725270679913,1.68548,58291.0,58278.0,0.3608]
[1725270680225,0.0004,58279.0,58278.0,0.3608]
[1725270680416,0.0004,58279.0,58270.0,0.060067]
[1725270680613,0.0004,58279.0,58278.0,0.3608]
[1725270680820,0.21,58282.0,58278.0,0.3608]
[1725270681420,0.3608,58279.0,58269.0,0.36105738]
[1725270681725,0.2104,58270.0,58269.0,0.36105738]
[1725270682119,0.2104,58270.0,58269.0,0.00025738]
[1725270682313,0.2104,58270.0,58269.0,0.36105738]
[1725270682821,0.72524,58270.0,58269.0,0.00025738]
[1725270683020,0.72524,58270.0,58262.0,0.3608]
[1725270683222,0.0004,58263.0,58262.0,0.420876]
[1725270686222,0.0004,58263.0,58262.0,1.535796]
[1725270686423,0.0004,58263.0,58262.0,0.935796]
[1725270686625,0.0004,58263.0,58262.0,1.535796]
[1725270686824,0.00025738,58268.0,58267.0,0.060071]
[1725270687135,0.00025738,58268.0,58267.0,0.421271]
[1725270687333,0.00025738,58268.0,58267.0,0.601271]
[1725270688025,0.00025738,58268.0,58267.0,0.421271]
[1725270688637,3.8e-07,58268.0,58267.0,0.421271]
[1725270688833,3.8e-07,58268.0,58267.0,1.536151]
[1725270689019,0.002,58298.0,58287.0,0.06005]
[1725270689220,0.002,58298.0,58297.0,0.0004]
[1725270689426,0.7266,58298.0,58297.0,0.0004]
[1725270689832,1.3266,58298.0,58297.0,0.0004]
[1725270691036,1.6874,58298.0,58292.0,0.00025738]
[1725270691331,0.3612,58293.0,58292.0,0.00025738]
[1725270691830,1.47584,58293.0,58292.0,0.00025738]
[1725270692022,1.04584,58293.0,58292.0,0.00025738]
[1725270692623,1.64584,58293.0,58292.0,0.00025738]
[1725270693437,1.64584,58293.0,58266.0,0.18]
[1725270693438,0.060074,58264.0,58252.0,0.3608]
[1725270693625,0.060074,58264.0,58245.0,0.44487912]
[1725270693626,0.0004,58253.0,58250.0,0.3608]
[1725270693826,0.0004,58253.0,58250.0,0.7216]
[1725270693827,0.0004,58251.0,58250.0,0.7216]
[1725270694127,0.0004,58251.0,58243.0,0.3608]
[1725270694128,0.17,58251.0,58243.0,0.3608]
[1725270694335,0.17,58251.0,58238.0,0.3608]
[1725270694336,0.1704,58244.0,58238.0,0.3608]
[1725270694525,0.1704,58239.0,58238.0,0.3608]
[1725270694829,0.17,58239.0,58238.0,0.3608]
[1725270695533,0.17,58239.0,58233.0,0.00025738]
[1725270695728,0.1704,58234.0,58233.0,0.00025738]
[1725270695931,0.0004,58234.0,58233.0,0.36105738]
[1725270698635,0.0004,58234.0,58233.0,0.00025738]
[1725270698842,1.11556,58234.0,58233.0,0.00025738]
[1725270699144,0.51556,58234.0,58226.0,0.3608]
[1725270699329,0.51556,58234.0,58232.0,0.3608]
[1725270699330,0.0004,58234.0,58232.0,0.3608]
[1725270699529,0.21,58236.0,58232.0,0.3608]
[1725270699732,0.16703115,58236.0,58235.0,0.0004]
[1725270699937,0.68219115,58236.0,58235.0,0.0004]
[1725270700135,0.16703115,58236.0,58235.0,0.0004]
[1725270700738,0.68219115,58236.0,58235.0,0.0004]
[1725270701138,0.16703115,58236.0,58235.0,0.0004]
[1725270702744,0.00025738,58239.0,58237.0,0.060101]
[1725270702929,0.00025738,58239.0,58238.0,0.3612]
[1725270704536,0.00025738,58239.0,58238.0,0.0004]
[1725270704731,0.00025738,58239.0,58238.0,0.3612]
[1725270706039,0.060106,58233.0,58230.0,0.00025738]
[1725270706243,0.0004,58231.0,58230.0,0.00025738]
[1725270710344,0.0004,58231.0,58230.0,0.18025738]
[1725270710541,0.0004,58231.0,58230.0,0.00025738]
[1725270711940,0.00025738,58239.0,58230.0,0.04625738]
[1725270712142,0.00025738,58239.0,58238.0,0.421301]
[1725270712635,0.00025738,58239.0,58238.0,1.536421]
[1725270713440,0.5708,58265.0,58238.0,1.47632]
[1725270713752,0.3608,58270.0,58264.0,0.0004]
[1725270713951,0.3608,58270.0,58269.0,0.0004]
[1725270714340,0.87564,58270.0,58269.0,0.0004]
[1725270714642,1.47564,58270.0,58264.0,0.00025738]
[1725270714837,1.47564,58270.0,58264.0,1e-08]
[1725270714838,0.631273,58265.0,58264.0,1e-08]
[1725270715243,1.746153,58265.0,58264.0,1e-08]
[1725270715943,1.68608,58265.0,58264.0,1e-08]
[1725270716149,0.72528,58265.0,58264.0,1e-08]
[1725270717143,0.2104,58265.0,58264.0,1e-08]
[1725270717942,0.1704,58265.0,58264.0,1e-08]
[1725270718340,0.5312,58265.0,58264.0,1e-08]
[1725270718740,1.64608,58265.0,58264.0,1e-08]
[1725270719148,1.04608,58265.0,58264.0,1e-08]
[1725270720144,0.68528,58265.0,58264.0,1e-08]
[1725270720548,0.0004,58265.0,58264.0,1e-08]
[1725270720745,0.060049,58289.0,58264.0,1e-08]
[1725270720746,0.17,58280.0,58264.0,0.36080001]
[1725270720941,0.17,58280.0,58274.0,0.3612]
[1725270722842,0.23181202,58275.0,58274.0,0.3612]
[1725270723348,0.06181202,58275.0,58274.0,0.3612]
[1725270723650,0.06181202,58275.0,58274.0,2.0168]
[1725270723842,0.0032,58288.0,58274.0,2.0168]
[1725270724045,0.0032,58288.0,58287.0,0.3612]
[1725270724358,0.06474253,58288.0,58287.0,0.3612]
[1725270724955,0.06474253,58288.0,58287.0,0.0004]
[1725270728553,0.06474253,58288.0,58283.0,0.31904847]
[1725270728758,0.0004,58284.0,58283.0,0.37910247]
[1725270728943,0.06194253,58284.0,58283.0,0.37910247]
[1725270729360,0.06194253,58284.0,58283.0,0.42860247]
[1725270729550,0.0004,58284.0,58283.0,0.42860247]
[1725270730542,0.0036,58288.0,58287.0,0.06005]
[1725270730751,0.00025738,58293.0,58292.0,0.060045]
[1725270730955,0.00025738,58293.0,58292.0,0.420845]
[1725270731746,0.00025738,58293.0,58292.0,0.421245]
[1725270731946,0.00025738,58293.0,58292.0,0.060445]
[1725270732460,0.00025738,58293.0,58292.0,0.421245]
[1725270734150,0.00025738,58293.0,58292.0,0.3612]
[1725270737763,1.11489738,58293.0,58282.0,0.00025738]
[1725270737968,1.11489738,58293.0,58269.0,0.3608]
[1725270737969,0.5308,58283.0,58269.0,0.3608]
[1725270738158,0.17,58272.0,58269.0,0.3608]
[1725270740784,0.00025738,58276.0,58269.0,0.3608]
[1725270740978,0.17,58272.0,58269.0,0.3608]
[1725270741781,0.17,58272.0,58268.0,0.3608]
[1725270743372,0.23154106,58272.0,58268.0,0.3608]
[1725270743568,0.06154106,58271.0,58268.0,0.3608]
[1725270743771,0.00025738,58276.0,58275.0,0.060063]
[1725270743973,0.06154107,58276.0,58275.0,0.591263]
[1725270744168,1e-08,58276.0,58275.0,1.706063]
[1725270744578,1e-08,58276.0,58275.0,1.886063]
[1725270745177,0.3608,58291.0,58284.0,0.060053]
[1725270745384,0.3608,58291.0,58290.0,0.0004]
[1725270747670,0.0004,58293.0,58291.0,0.060046]
[1725270748081,0.0004,58293.0,58292.0,0.0004]
[1725270751104,0.00025738,58296.0,58292.0,1.11504]
[1725270751399,0.00092,58308.0,58296.0,0.060041]
[1725270751575,0.17,58320.0,58314.0,0.060022]
[1725270751774,0.14858472,58326.0,58316.0,0.3608]
[1725270751775,0.17,58324.0,58316.0,0.3608]
[1725270752179,0.3608,58328.0,58316.0,0.3608]
[1725270752383,0.3608,58328.0,58326.0,0.06001]
[1725270752780,0.3608,58328.0,58320.0,0.060015]
[1725270752977,0.17,58323.0,58320.0,0.060015]
[1725270753386,0.17,58323.0,58316.0,0.32475738]
[1725270753387,0.53105738,58328.0,58321.0,0.3608]
[1725270753989,0.53105738,58328.0,58326.0,0.06001]
[1725270753990,0.36105738,58328.0,58326.0,0.06001]
[1725270754180,0.00025738,58328.0,58327.0,0.3608]
[1725270754372,3.8e-07,58328.0,58327.0,1.04516]
[1725270754571,3.8e-07,58328.0,58327.0,1.73976]
[1725270754985,3.8e-07,58328.0,58327.0,0.96976]
[1725270755195,3.8e-07,58328.0,58327.0,1.73976]
[1725270755379,3.8e-07,58328.0,58327.0,1.13976]
[1725270755587,3.8e-07,58328.0,58327.0,1.73976]
[1725270756185,3.8e-07,58328.0,58327.0,1.91976]
[1725270757091,0.00844713,58352.0,58327.0,1.91976]
[1725270757092,0.3608,58352.0,58327.0,1.6028]
[1725270757300,0.00088,58362.0,58351.0,0.3608]
[1725270757595,0.3608,58377.0,58370.0,0.059964]
[1725270757793,0.17,58373.0,58367.0,0.3608]
[1725270757985,0.17,58367.0,58352.0,0.04892]
[1725270758305,0.3608,58370.0,58356.0,0.3608]
[1725270758888,0.3608,58370.0,58369.0,0.0004]
[1725270759190,0.3608,58375.0,58369.0,0.3612]
[1725270759497,0.3608,58375.0,58374.0,0.0004]
[1725270759703,0.3608,58375.0,58348.0,0.5308]
[1725270759704,0.059968,58367.0,58348.0,0.5308]
[1725270759999,0.53145692,58375.0,58362.0,0.3608]
[1725270760196,0.3608,58370.0,58362.0,0.27161431]
[1725270760496,0.0614638,58369.0,58360.0,0.00025692]
[1725270760687,0.3608,58364.0,58360.0,0.00025692]
[1725270760894,0.0614638,58363.0,58360.0,0.00025692]
[1725270761093,0.0614638,58362.0,58360.0,0.00025692]
[1725270761291,0.0614638,58361.0,58360.0,0.00025692]
[1725270761589,0.4222638,58361.0,58360.0,0.00025692]
[1725270762985,0.0614638,58361.0,58360.0,0.00025692]
[1725270763189,0.0614638,58361.0,58360.0,0.36105692]
[1725270763396,0.0614638,58368.0,58360.0,1.47509692]
[1725270763694,0.3608,58369.0,58364.0,0.17]
[1725270763695,0.0614638,58367.0,58364.0,0.17]
[1725270763889,0.0614638,58366.0,58364.0,0.22997]
[1725270764200,0.0614638,58365.0,58364.0,0.22997]
[1725270764500,0.06144831,58371.0,58365.0,0.8748]
[1725270764690,0.3608,58383.0,58372.0,0.17]
[1725270764891,0.06144714,58374.0,58373.0,0.059961]
[1725270765091,0.06144714,58374.0,58370.0,0.3608]
[1725270765290,0.00017087,58382.0,58373.0,0.17]
[1725270765500,0.06144813,58387.0,58378.0,0.17]
[1725270765806,0.05139026,58396.0,58395.0,0.059939]
[1725270765995,0.3608,58398.0,58386.0,0.3608]
[1725270766398,0.3608,58398.0,58397.0,0.0004]
[1725270766791,0.3608,58398.0,58397.0,1.11412]
[1725270767296,0.3608,58398.0,58397.0,0.0004]
[1725270769610,0.3608,58398.0,58397.0,0.51412]
[1725270769799,0.3608,58398.0,58397.0,0.1704]
[1725270769995,0.3608,58398.0,58397.0,1.28412]
[1725270770694,0.3608,58405.0,58397.0,1.11412]
[1725270770897,0.3608,58398.0,58397.0,0.0004]
[1725270771294,0.3608,58398.0,58392.0,0.00025692]
[1725270771495,0.3608,58393.0,58392.0,0.00025692]
[1725270772403,0.598661,58467.0,58392.0,1.11401692]
[1725270772404,0.3608,58406.0,58392.0,1.11401692]
[1725270772596,0.3608,58406.0,58405.0,0.0004]
[1725270774896,0.3608,58406.0,58405.0,0.51404]
[1725270775105,0.3608,58416.0,58405.0,0.51404]
[1725270775106,0.3608,58411.0,58405.0,0.51404]
[1725270775303,0.3608,58411.0,58410.0,0.0004]
[1725270777209,1.8352,58411.0,58405.0,0.00025692]
[1725270777403,1.8352,58411.0,58385.0,0.5308]
[1725270777404,0.5308,58406.0,58385.0,0.5308]
[1725270777597,0.3608,58396.0,58385.0,0.5308]
[1725270777897,0.5308,58406.0,58391.0,0.17]
[1725270777898,0.3608,58399.0,58391.0,0.17]
[1725270778103,0.36184001,58406.0,58398.0,0.3608]
[1725270778104,0.3608,58406.0,58398.0,0.3608]
[1725270778300,0.3608,58406.0,58398.0,0.420736]
[1725270778499,0.3608,58406.0,58398.0,0.3608]
[1725270778698,0.3608,58399.0,58393.0,0.059941]
[1725270778896,0.3608,58406.0,58396.0,0.06019492]
[1725270779111,0.06018392,58408.0,58396.0,0.00025692]
[1725270779112,0.3608,58400.0,58396.0,0.00025692]
[1725270780204,0.5308,58400.0,58396.0,0.00025692]
[1725270780505,0.3608,58400.0,58387.0,0.17]
[1725270781113,0.3608,58400.0,58394.0,0.059939]
[1725270781416,0.00025692,58408.0,58406.0,0.059928]